fUSD/lending_fUSD_20241026
["ID","MTS","AMOUNT","RATE_DAILY","PERIOD"]
[340840081,1729907453098,-500.0,0.00059998,120]
[340840082,1729907453108,-500.0,0.00059998,120]
[340840083,1729907453118,-569.69,0.00059998,120]
[340840084,1729907453127,-500.0,0.00059998,120]
[340840085,1729907453136,-500.0,0.00059998,120]
[340840086,1729907453145,-500.0,0.00059998,120]
[340840087,1729907453155,-549.55,0.00059998,120]
[340840088,1729907453164,-316.28495663,0.00059999,31]
[340840089,1729907453174,-150.0,0.00059999,120]
[340840090,1729907453183,-30833.66911972,0.00059999,60]
[340840091,1729907453192,-21302.20600361,0.00059999,64]
[340840092,1729907453442,-2999.99,0.00036333,2]
[340840093,1729907453451,-214.58,0.00036419,2]
[340840094,1729907453461,-157.0,0.00043787,2]
[340840095,1729907453470,-201.48882147,0.0004464,2]
[340840096,1729907453479,-2385.55,0.00059452,120]
[340840097,1729907453488,-739.39162261,0.00059999,120]
[340840098,1729907453499,-1646.15837739,0.00059999,120]
[340840099,1729907453509,-7522.44134559,0.00059999,64]
[340840100,1729907453520,-402.150428,0.00059999,64]
[340840101,1729907453540,-9096.64373114,0.00059999,64]
[340840102,1729907453552,-8947.21879473,0.00059999,64]
[340840103,1729907453563,-8943.78386462,0.00059999,64]
[340840104,1729907453574,-9077.54866152,0.00059999,64]
[340840105,1729907453585,-8943.84023489,0.00059999,64]
[340840106,1729907453606,-57659.68373098,0.00059999,64]
[340840107,1729907453619,-77279.52361649,0.00059999,64]
[340840108,1729907453630,-379.83100001,0.00059999,64]
[340840109,1729907453699,-53.34125039,0.00059999,64]
[340840110,1729907453710,-1157.37571149,0.00059999,64]
[340840111,1729907453956,-3000.0,0.00036373,2]
[340840112,1729907453966,-450.0,0.00059452,7]
[340840113,1729907453976,-14724.74255351,0.00059999,64]
[340840116,1729907822823,186.43795333,0.00043279,120]
[340840117,1729908564106,-151.26082133,0.00015169,2]
[340840118,1729908564126,-2484.12524437,0.00015242,2]
[340840119,1729908564159,-28.66977558,0.00015342,2]
[340840121,1729908631847,-127.08022442,0.00015342,2]
[340840122,1729908631857,-272.31877558,0.00025124,2]
[340840123,1729908632060,-2211.80646878,0.00025124,2]
[340840124,1729908632071,-936.44393774,0.0003483,2]
[340840125,1729908632084,-700.0,0.0003483,2]
[340840126,1729908636074,-301.27201526,0.0003483,2]
[340840127,1729908636084,-362.42651974,0.00035005,2]
[340840128,1729908636098,-2121.69872462,0.00035005,2]
[340840129,1729908636107,-207.3668697,0.00035005,2]
[340840130,1729908636117,-637.42194568,0.00035819,2]
[340840131,1729908636129,-1818.06625349,0.00035819,2]
[340840132,1729908636138,-163.323,0.00035819,43]
[340840133,1729908636148,-2332.86,0.00035819,2]
[340840134,1729908636159,-872.41,0.00035819,2]
[340840135,1729908636169,-288.63,0.00035819,2]
[340840136,1729908636179,-1170.58,0.00036382,2]
[340840137,1729908636188,-3000.0,0.00036385,2]
[340840138,1729908636198,-3000.0,0.00036391,2]
[340840139,1729908636208,-3000.0,0.00036394,2]
[340840140,1729908636217,-184.76698249,0.000372,103]
[340840141,1729908636226,-185.0,0.000392,2]
[340840142,1729908636236,-581.7271,0.00043179,2]
[340840143,1729908636246,-150.0,0.0004329,30]
[340840144,1729908636255,-497.549673,0.00043298,5]
[340840146,1729908636264,-450.0,0.0004387,7]
[340840148,1729908636273,-393.32,0.00045431,2]
[340840150,1729908636283,-155.39,0.00047526,2]
[340840152,1729908636292,-393.32,0.00047695,2]
[340840153,1729908636301,-154.08,0.00047756,2]
[340840155,1729908636311,-2918.95,0.00047757,7]
[340840156,1729908636320,-172.37,0.00048017,120]
[340840157,1729908636329,-308.0,0.00048337,4]
[340840158,1729908636338,-3814.12786975,0.00048338,2]
[340840159,1729908636352,-939.09124655,0.00048338,2]
[340840161,1729908636363,-688.39999162,0.00048338,2]
[340840163,1729908636375,-2194.55656055,0.00048338,2]
[340840164,1729908636386,-450.44936041,0.00048338,2]
[340840170,1729908637945,-15813.37497112,0.00048338,2]
[340840173,1729908637955,-250.0,0.00048539,120]
[340840174,1729908637965,-250.0,0.00048548,120]
[340840175,1729908637974,-3985.92,0.00048686,2]
[340840176,1729908637984,-239.92,0.00048693,2]
[340840177,1729908637993,-200.0,0.0004878,2]
[340840178,1729908638002,-250.0,0.00048822,120]
[340840179,1729908638011,-195.23,0.0004885,2]
[340840180,1729908638020,-169.66,0.00049098,2]
[340840181,1729908638029,-200.0,0.00049295,2]
[340840182,1729908638038,-393.32,0.00049958,2]
[340840183,1729908638048,-1731.0,0.000521,120]
[340840184,1729908638057,-393.32,0.00052222,2]
[340840185,1729908638198,-155.39,0.00052279,2]
[340840186,1729908638209,-1500.0,0.000529,2]
[340840187,1729908638219,-1115.89,0.00053183,2]
[340840188,1729908638229,-200.0,0.00053512,2]
[340840189,1729908638239,-163.323,0.00054364,102]
[340840190,1729908638248,-927.0,0.000544,13]
[340840191,1729908638258,-393.32,0.00054486,2]
[340840192,1729908638268,-162.92,0.0005464,2]
[340840193,1729908638278,-1085.42,0.00054794,120]
[340840194,1729908638287,-500.0,0.00054795,120]
[340840195,1729908638297,-1980.0,0.00054845,120]
[340840196,1729908638306,-1264.0,0.00054845,120]
[340840197,1729908638316,-200.0,0.00055457,120]
[340840198,1729908638325,-8538.13307086,0.00055462,44]
[340840199,1729908638334,-1500.0,0.000556,90]
[340840200,1729908638347,-800.0,0.00056067,120]
[340840201,1729908638356,-479.01921627,0.000565,15]
[340840202,1729908638365,-17590.8231,0.0005659,2]
[340840203,1729908638373,-8435.4667,0.0005659,2]
[340840204,1729908638383,-3025.4461,0.000566,2]
[340840205,1729908638392,-148757.0318,0.000566,2]
[340840206,1729908638402,-1116.6851,0.000566,2]
[340840207,1729908638411,-8621.85738437,0.000566,2]
[340840208,1729908638423,-1879.31491563,0.000566,2]
[340840209,1729908638433,-214.90498531,0.0005665,28]
[340840210,1729908638443,-155.16740372,0.0005665,28]
[340840211,1729908638451,-1005.12357442,0.0005668,13]
[340840212,1729908638463,-2901.32341379,0.0005668,13]
[340840213,1729908638473,-1264.43557993,0.0005668,13]
[340840214,1729908638485,-2185.1872609,0.0005668,13]
[340840215,1729908638494,-2239.8022741,0.0005669,13]
[340840216,1729908638512,-1000.0,0.0004387,7]
[340840217,1729908638522,-7874.7937408,0.0005669,13]
[340840218,1729908638531,-159.17,0.0005669,120]
[340840219,1729908638541,-234.91689479,0.0005669,7]
[340840220,1729908638550,-433.29500126,0.00056699,31]
[340840221,1729908638560,-119119.47946769,0.000567,2]
[340840222,1729908638571,-898.86584608,0.000567,2]
[340840223,1729908638583,-845.302431,0.000567,2]
[340840224,1729908638595,-452768.1018332,0.000567,2]
[340840225,1729908638607,-1368.36142926,0.000567,2]
[340840226,1729908638618,-183767.27039277,0.000567,2]
[340840227,1729908638627,-393.32,0.0005675,2]
[340840228,1729908638636,-191231.06183172,0.000568,120]
[340840229,1729908638646,-18461.61157863,0.000568,30]
[340840230,1729908638655,-209.27221496,0.000568,30]
[340840231,1729908638665,-588.77881437,0.00057,120]
[340840232,1729908638676,-155.39,0.00057031,2]
[340840233,1729908638686,-479.0192162,0.000576,15]
[340840234,1729908638695,-176.83,0.00057749,2]
[340840235,1729908638704,-1980.0,0.00057845,120]
[340840236,1729908638714,-1264.0,0.00057845,120]
[340840237,1729908638724,-150.0,0.000579,112]
[340840238,1729908638734,-167.0,0.00058,120]
[340840239,1729908638744,-157.0,0.00058689,25]
[340840240,1729908638755,-479.0192162,0.000587,15]
[340840241,1729908638764,-155.16740372,0.00058713,28]
[340840242,1729908638773,-509.27977892,0.00058773,2]
[340840243,1729908638782,-494771.08054951,0.000588,120]
[340840244,1729908638798,-6348.8759744,0.000588,120]
[340840245,1729908638810,-998.3984402,0.000588,120]
[340840246,1729908638822,-264.77000002,0.000588,120]
[340840247,1729908638833,-5555.82829994,0.000588,120]
[340840278,1729908640045,-171.0,0.000566,2]
[340840280,1729908640055,-8925.64373114,0.000588,120]
[340840282,1729908640067,-8947.21879473,0.000588,120]
[340840285,1729908640078,-8943.78386462,0.000588,120]
[340840287,1729908640089,-9077.54866152,0.000588,120]
[340840289,1729908640102,-8943.84023489,0.000588,120]
[340840291,1729908640113,-100045.32821675,0.000588,120]
[340840293,1729908640124,-22721.88311488,0.000588,120]
[340840295,1729908640135,-261.54380565,0.000588,120]
[340840296,1729908640146,-2110.66568425,0.000588,120]
[340840297,1729908640157,-998.486475,0.000588,120]
[340840298,1729908640168,-3155.41621399,0.000588,120]
[340840299,1729908640178,-391.951146,0.000588,120]
[340840300,1729908640261,-1740.89314354,0.000588,120]
[340840301,1729908640273,-2383.28089997,0.000588,120]
[340840302,1729908640289,-5059.50192414,0.000588,120]
[340840303,1729908640299,-6664.80077973,0.000588,120]
[340840304,1729908640311,-4218.43884436,0.000588,120]
[340840305,1729908640322,-2141.43721782,0.000588,120]
[340840306,1729908640334,-969.65529697,0.000588,120]
[340840307,1729908640469,-794.79791123,0.000588,120]
[340840310,1729908640482,-1727.99999992,0.000588,120]
[340840316,1729908643066,-191.29,0.0005879,10]
[340840317,1729908643076,-10811.14832094,0.000588,120]
[340840318,1729908643109,-254116.61586105,0.000588,120]
[340840319,1729908643120,-1372.89162855,0.000588,120]
[340840320,1729908643132,-7300.0,0.000588,120]
[340840321,1729908643144,-328.73999992,0.000588,120]
[340840322,1729908643256,-2990.61740319,0.000588,120]
[340840323,1729908643268,-359.73856219,0.000588,120]
[340840325,1729908646031,-143.74991604,0.000521,120]
[340840326,1729908646187,-296.25008396,0.000521,120]
[340840327,1729908646197,-183.0,0.000588,2]
[340840328,1729908646208,-68.83395546,0.000588,120]
[340840331,1729909523457,1377.28145611,0.00043311,30]
[340840332,1729909527693,5366.32082868,0.00043311,30]
[340840333,1729909528120,289.79616299,0.00043311,30]
[340840334,1729909528712,228.98776687,0.00043311,30]
[340840335,1729909534480,348.01922902,0.00043311,30]
[340840336,1729909669487,156.2107341,0.00043311,30]
[340840337,1729909676044,3018.69130411,0.00013,15]
[340840338,1729909683232,1139.09722038,0.00023,60]
[340840339,1729909684679,163.12581024,0.00043311,120]
[340840343,1729909716173,596.88054849,0.00043311,30]
[340840344,1729909717887,5872.4424333,0.00043311,60]
[340840345,1729909719210,232.62751504,0.00043311,30]
[340840346,1729909721388,300.09648542,0.00043311,120]
[340840351,1729909831987,-450.0,0.000145,2]
[340840360,1729909832123,-99.23334782,0.000145,2]
[340840361,1729909832299,-150.0,0.00014632,2]
[340840362,1729909832315,-165.71,0.00015342,2]
[340840363,1729909832326,-154.8,0.00019178,2]
[340840364,1729909832336,-225.0,0.00019725,2]
[340840365,1729909832345,-2334.67700109,0.0002,2]
[340840366,1729909832453,-800.0,0.0002,2]
[340840367,1729909832464,-1436.62521373,0.0002,2]
[340840368,1729909832473,-1331.87914773,0.0002,2]
[340840369,1729909832484,-1974.13736734,0.0002,2]
[340840370,1729909832594,-1592.89895978,0.0002,2]
[340840374,1729909838125,-638.24848553,0.0002,2]
[340840377,1729909838262,-101959.11983141,0.0002,2]
[340840378,1729909838272,-7976.87169358,0.0002,2]
[340840379,1729909838281,-14863.80694293,0.00021,2]
[340840380,1729909838291,-9999.99,0.00021,2]
[340840381,1729909838301,-630.8633113,0.00022,5]
[340840382,1729909838311,-599.01,0.00022,2]
[340840383,1729909838323,-616.82727023,0.00022,2]
[340840384,1729909838334,-749.42971923,0.00022,7]
[340840385,1729909838344,-4876.60121384,0.000232,2]
[340840386,1729909838354,-302.10176374,0.00024,7]
[340840387,1729909838365,-400.61933461,0.0002421,2]
[340840388,1729909838374,-1228.09414435,0.0002425,2]
[340840389,1729909838384,-336.48690511,0.0002442,2]
[340840390,1729909838393,-52488.16360261,0.0002495,2]
[340840391,1729909838404,-632.75118582,0.0002495,2]
[340840392,1729909838414,-1537.45052477,0.00025,2]
[340840393,1729909838423,-173.03,0.00027851,2]
[340840394,1729909838432,-739.0,0.0003,120]
[340840395,1729909838442,-122.19880941,0.0003,2]
[340840396,1729909838453,-59.80119059,0.0003,2]
[340840397,1729909838462,-460.34255005,0.0003153,7]
[340840398,1729909838472,-331.6,0.00032672,2]
[340840399,1729909838481,-228.79465724,0.00032877,2]
[340840400,1729909838490,-880.0,0.00034089,2]
[340840401,1729909838499,-250.0,0.00034327,2]
[340840402,1729909838509,-179.49,0.00034883,2]
[340840403,1729909838518,-331.6,0.00034936,2]
[340840404,1729909838528,-331.6,0.000372,2]
[340840405,1729909838538,-9710.52628301,0.000379,2]
[340840406,1729909838549,-663.71139447,0.000379,2]
[340840407,1729909838566,-944.18934277,0.000379,2]
[340840437,1729909840149,-538.63859077,0.000379,2]
[340840440,1729909840159,-214.86909034,0.00038351,2]
[340840456,1729909843330,-54.37436894,0.00038351,2]
[340840457,1729909843412,-610.75654072,0.00038351,2]
[340840458,1729909843422,-385.33473756,0.000389,30]
[340840459,1729909843431,-331.6,0.00039464,2]
[340840460,1729909843441,-181.47,0.0004,2]
[340840461,1729909843450,-173.23241104,0.0004,30]
[340840462,1729909843460,-1128.11627956,0.0004,14]
[340840463,1729909843469,-188.22072812,0.0004,2]
[340840464,1729909846242,-184.50403152,0.0004,2]
[340840465,1729909846252,-1021.37833172,0.0004,14]
[340840466,1729909846261,-208.98907092,0.0004,2]
[340840467,1729909846270,-457.0621049,0.0004,60]
[340840468,1729909846280,-331.6,0.00041728,2]
[340840469,1729909846290,-6223.3819622,0.00041728,2]
[340840470,1729909846299,-1783.61034978,0.00042,2]
[340840471,1729909846308,-880.0,0.00042612,2]
[340840472,1729909846318,-192.72094728,0.000429,30]
[340840473,1729909846327,-4814.065,0.000429,2]
[340840474,1729909846337,-159.41,0.0004299,10]
[340840475,1729909846347,-238.83767441,0.00042999,31]
[340840476,1729909846356,-12237.078112,0.00043,120]
[340840477,1729909846366,-6342.33424532,0.00043,2]
[340840478,1729909846377,-375.87444749,0.00043,2]
[340840479,1729910298002,-184.0,0.000372,103]
[340840483,1729910974182,-220.53700604,0.00015242,2]
[340840484,1729910974203,-2678.73742796,0.00015242,2]
[340840485,1729911032250,-858.16390953,0.00015242,2]
[340840488,1729911032262,-2868.43524698,0.00015242,2]
[340840490,1729911032272,-162.43,0.00015342,2]
[340840491,1729911032282,-155.75,0.00015342,2]
[340840494,1729911032291,-530.08398104,0.00015342,2]
[340840496,1729911032301,-155.44,0.00017141,2]
[340840497,1729911032310,-300.0,0.00019451,2]
[340840499,1729911032320,-189.99,0.00019726,3]
[340840501,1729911032329,-835.65604979,0.00019726,2]
[340840504,1729911032340,-450.80231563,0.00019726,2]
[340840505,1729911032472,-140.93163458,0.00019726,2]
[340840506,1729911032482,-2180.03540653,0.00019726,2]
[340840507,1729911032493,-1098.45459347,0.00019726,2]
[340840508,1729911032504,-420.0,0.00021192,2]
[340840509,1729911032514,-587.0,0.00023088,2]
[340840510,1729911032523,-823.0,0.00025155,2]
[340840511,1729911032532,-430.0,0.00027406,2]
[340840512,1729911032542,-291.8,0.00029968,2]
[340840513,1729911032551,-1878.623778,0.00031415,2]
[340840514,1729911032561,-7495.41781506,0.00031573,2]
[340840515,1729911032570,-150.0,0.00032109,2]
[340840516,1729911032580,-150.0,0.0003211,2]
[340840517,1729911032589,-150.99,0.0003211,2]
[340840518,1729911032599,-19.77273675,0.0003211,2]
[340840519,1729911032613,-420.75153955,0.0003211,2]
[340840520,1729911032624,-727.63973477,0.0003211,2]
[340840523,1729911038354,-4340.11598893,0.0003211,2]
[340840524,1729911038363,-179.6015207,0.00032877,2]
[340840525,1729911038373,-150.0,0.00034548,10]
[340840526,1729911038383,-610.94450792,0.00034849,120]
[340840527,1729911038392,-404.46741961,0.00034981,7]
[340840528,1729911038404,-297.80072508,0.00034981,7]
[340840529,1729911038485,-425.4,0.00034981,7]
[340840530,1729911038706,-2019.84129651,0.00034981,7]
[340840531,1729911038717,-539.039175,0.00034981,7]
[340840537,1729911040502,-671.7407838,0.00034981,7]
[340840538,1729911040511,-2999.98,0.00036368,2]
[340840539,1729911040523,-214.57,0.00036415,2]
[340840540,1729911040533,-604.58,0.00037084,2]
[340840541,1729911040543,-0.76698249,0.000372,103]
[340840542,1729911040552,-200.0,0.00037426,2]
[340840543,1729911040561,-1460.05,0.00037609,2]
[340840544,1729911040572,-163.58,0.00038356,120]
[340840545,1729911040581,-382.73267779,0.00038455,2]
[340840546,1729911040592,-1617.26732221,0.00038455,2]
[340840547,1729911040603,-827.67,0.0003883,2]
[340840548,1729911040615,-202.01,0.00038923,120]
[340840549,1729911040625,-352.0,0.0003896,2]
[340840550,1729911040635,-604.58,0.00039347,2]
[340840551,1729911040644,-250.0,0.00039391,2]
[340840552,1729911040654,-250.0,0.0003943,120]
[340840553,1729911040664,-162.43,0.00039671,2]
[340840554,1729911040673,-219.0,0.0004,2]
[340840555,1729911040683,-250.0,0.00040057,2]
[340840556,1729911040693,-200.0,0.00040132,2]
[340840557,1729911040703,-4233.64240077,0.00040177,2]
[340840566,1729911044336,-315.12654839,0.00040177,2]
[340840572,1729911916945,1000.0,0.00043312,120]
[340840573,1729912011133,-274.75894511,0.00015342,2]
[340840588,1729912232519,-225.24105489,0.00015342,2]
[340840589,1729912232529,-103.90154839,0.00015342,2]
[340840590,1729912232540,-216.00495283,0.00015342,2]
[340840591,1729912232549,-83.99504717,0.00015342,2]
[340840592,1729912232633,-107.70495283,0.00015342,2]
[340840593,1729912232643,-165.71,0.00015342,2]
[340840594,1729912232652,-596.48,0.00039211,2]
[340840595,1729912232662,-41323.0,0.00039384,2]
[340840596,1729912232672,-197.0,0.000399,2]
[340840597,1729912232681,-6750.2179,0.00039909,2]
[340840598,1729912232692,-8189.0072,0.00040009,2]
[340840599,1729912232701,-150.59,0.00041096,2]
[340840600,1729912232710,-879.65094154,0.000411,2]
[340840601,1729912232719,-281.6,0.00041134,2]
[340840602,1729912232728,-150.99,0.00041134,2]
[340840603,1729912232739,-250.0,0.00041143,120]
[340840604,1729912232748,-500.0,0.00041378,2]
[340840605,1729912232757,-163.58,0.00041393,120]
[340840606,1729912232766,-157.0,0.00041415,2]
[340840607,1729912232776,-200.0,0.00041416,2]
[340840608,1729912232786,-250.0,0.00041448,2]
[340840609,1729912232796,-596.48,0.00041475,2]
[340840610,1729912232807,-172.165,0.00041478,61]
[340840611,1729912232818,-2024.363,0.00041478,61]
[340840612,1729912232829,-23900.0,0.00041492,2]
[340840613,1729912232840,-250.0,0.00041514,2]
[340840614,1729912232850,-172.37,0.00041532,120]
[340840615,1729912232860,-730.02,0.00041637,2]
[340840616,1729912232869,-163.0,0.00041695,2]
[340840617,1729912232878,-718.4,0.00041708,2]
[340840618,1729912232888,-7683.0,0.000418,5]
[340840619,1729912232897,-181.5,0.00041949,2]
[340840620,1729912232907,-155.39,0.00041952,2]
[340840621,1729912232916,-4900.46,0.0004269,7]
[340840622,1729912232925,-1777.23,0.0004269,7]
[340840623,1729912232936,-874.7,0.0004269,7]
[340840624,1729912232947,-178.27,0.000427,7]
[340840625,1729912232957,-159.6,0.00042901,10]
[340840626,1729912232967,-3466.999,0.00042911,2]
[340840627,1729912232976,-201.48882147,0.00042973,2]
[340840628,1729912232985,-584.21,0.0004299,30]
[340840629,1729912232994,-13819.89671275,0.00043,2]
[340840630,1729912233006,-775.87557787,0.00043,2]
[340840631,1729912238393,-1002.10843179,0.00043,2]
[340840632,1729912238405,-540.65357155,0.00043,2]
[340840634,1729912238601,-1698.02186945,0.00043,2]
[340840635,1729912238612,-288.75219566,0.00043,2]
[340840636,1729912238624,-566.76354058,0.00043,2]
[340840637,1729912238635,-4461.84790807,0.00043,2]
[340840638,1729912238646,-5533.35431226,0.00043,2]
[340840639,1729912238657,-671.56307169,0.00043,2]
[340840640,1729912238669,-1068.08435061,0.00043,2]
[340840641,1729912238680,-4392.91305409,0.00043,2]
[340840642,1729912238691,-358.33485164,0.00043,2]
[340840643,1729912238817,-264.24,0.00043,2]
[340840644,1729912238829,-9455.58307413,0.00043,2]
[340840645,1729912238840,-566.68732454,0.00043,2]
[340840646,1729912240453,-1466.28995734,0.00043,2]
[340840647,1729912240465,-407.21826142,0.00043,2]
[340840648,1729912240476,-292.44965351,0.00043,2]
[340840650,1729912240489,-334.34473846,0.00043,2]
[340840652,1729912240699,-1486.90737737,0.00043,2]
[340840653,1729912240711,-3771.61982306,0.00043,2]
[340840654,1729912240722,-337.55851746,0.00043,2]
[340840655,1729912244680,-30.52877164,0.00043,2]
[340840656,1729912244878,-288.6682719,0.00043,2]
[340840657,1729912244891,-1627.54392207,0.00043,2]
[340840660,1729912246442,-516.17615516,0.00043,2]
[340840661,1729912246452,-845.28227627,0.00043011,15]
[340840662,1729912246462,-2321.54156857,0.00043011,2]
[340840668,1729912560832,207.0,0.00043312,120]
[340840669,1729912625710,800.0,0.00014007,2]
[340840670,1729912625730,348.66,0.00014007,2]
[340840673,1729913272963,451.34,0.00012579,2]
[340840674,1729913272982,800.0,0.00012579,2]
[340840675,1729913273002,800.0,0.00012579,2]
[340840676,1729913273021,800.0,0.00012579,2]
[340840677,1729913273040,800.0,0.00012579,2]
[340840678,1729913273059,800.0,0.00012579,2]
[340840679,1729913273078,800.0,0.00012579,2]
[340840680,1729913273098,800.0,0.00012579,2]
[340840681,1729913273117,860.0,0.00012579,2]
[340840682,1729913273142,20900.04170044,0.00012579,2]
[340840683,1729913356139,-2716.3360314,0.00015,2]
[340840696,1729913431832,-5995.19147236,0.00015,2]
[340840697,1729913431843,-278.01587842,0.00015,2]
[340840699,1729913437904,-151525.52201974,0.00015,2]
[340840700,1729913437913,-760.75404858,0.00015242,2]
[340840701,1729913437923,-162.43,0.00015342,2]
[340840702,1729913437932,-2572.44870871,0.000159,2]
[340840703,1729913437941,-181.54,0.00019178,2]
[340840704,1729913437950,-760.75404857,0.00020871,2]
[340840705,1729913437958,-202.78177665,0.00023,2]
[340840706,1729913437967,-2891.32691715,0.00025,2]
[340840707,1729913437977,-760.75404857,0.00026499,2]
[340840708,1729913437986,-504.03838758,0.0003,2]
[340840709,1729913437995,-151.0,0.0003,120]
[340840710,1729913438004,-159.47622755,0.00031,2]
[340840711,1729913438012,-499.999999,0.0003121,2]
[340840712,1729913438021,-760.75404857,0.00032128,15]
[340840713,1729913438030,-169.72295257,0.00032877,2]
[340840714,1729913438039,-177.07,0.00033398,2]
[340840715,1729913438048,-368.05129262,0.00034849,120]
[340840716,1729913438057,-1303.47,0.0003699,2]
[340840717,1729913438066,-760.75404857,0.00037757,15]
[340840718,1729913438075,-1162.7,0.00038751,2]
[340840719,1729913438084,-23900.0,0.00039126,2]
[340840720,1729913438094,-1303.47,0.00039254,2]
[340840721,1729913438103,-287.0,0.000398,2]
[340840722,1729913438112,-250.0,0.00040634,120]
[340840723,1729913438121,-8305.12,0.00040951,2]
[340840724,1729913438130,-163.58,0.00041198,120]
[340840725,1729913438139,-250.0,0.00041517,2]
[340840726,1729913438149,-1303.47,0.00041518,2]
[340840727,1729913438159,-150.59,0.00041551,2]
[340840728,1729913438168,-163.0,0.00041613,2]
[340840729,1729913438178,-157.0,0.00041718,2]
[340840730,1729913438190,-4027.5012,0.0004173,2]
[340840731,1729913438199,-250.0,0.00041731,2]
[340840732,1729913438210,-225.28,0.00041837,2]
[340840733,1729913438220,-365.01,0.0004185,2]
[340840734,1729913438231,-172.37,0.00041859,120]
[340840735,1729913438241,-150.0,0.00042,120]
[340840736,1729913438251,-172.16596826,0.0004203,63]
[340840737,1729913438262,-1756.099,0.0004203,63]
[340840738,1729913438272,-774.72,0.00042278,2]
[340840739,1729913438282,-42725.72754349,0.0004259,2]
[340840740,1729913438293,-151.0,0.0004259,14]
[340840741,1729913438303,-202.754193,0.0004259,14]
[340840742,1729913438313,-202.754193,0.0004259,14]
[340840743,1729913438324,-200.0,0.000426,15]
[340840744,1729913438333,-500.0,0.000427,15]
[340840746,1729913438342,-800.0,0.000428,15]
[340840748,1729913438352,-1100.0,0.000429,15]
[340840750,1729913438362,-9581.339605,0.000429,2]
[340840751,1729913438372,-596.672,0.00042911,2]
[340840753,1729913438382,-239.99227892,0.00042997,2]
[340840755,1729913438391,-151.60511509,0.0004301,2]
[340840757,1729913438402,-2044.65496456,0.0004301,2]
[340840760,1729913438412,-6705.50533143,0.00043011,2]
[340840762,1729913438422,-815.16803219,0.0004321,2]
[340840764,1729913438432,-484.99106824,0.0004321,2]
[340840766,1729913438442,-510.7400444,0.0004321,2]
[340840768,1729913438452,-493.98673193,0.0004321,31]
[340840770,1729913438462,-500.0,0.0004321,31]
[340840771,1729913438472,-355.34534218,0.0004321,31]
[340840773,1729913438481,-500.0,0.0004321,31]
[340840775,1729913438493,-500.0,0.0004321,31]
[340840778,1729913438504,-328.05345437,0.0004321,31]
[340840780,1729913438513,-500.0,0.0004321,31]
[340840781,1729913438523,-500.0,0.0004321,31]
[340840783,1729913438533,-500.0,0.0004321,31]
[340840785,1729913438545,-500.0,0.0004321,31]
[340840788,1729913438555,-500.0,0.0004321,31]
[340840789,1729913438564,-500.0,0.0004321,31]
[340840791,1729913438573,-500.0,0.0004321,31]
[340840793,1729913438587,-500.0,0.0004321,31]
[340840808,1729913438714,-500.0,0.0004321,31]
[340840810,1729913438725,-500.0,0.0004321,31]
[340840812,1729913438734,-500.0,0.0004321,31]
[340840814,1729913438744,-500.0,0.0004321,31]
[340840816,1729913438753,-500.0,0.0004321,31]
[340840818,1729913438763,-500.0,0.0004321,31]
[340840820,1729913438772,-6284.15109765,0.0004321,2]
[340840822,1729913438781,-814.59005814,0.00043211,2]
[340840824,1729913438790,-10603.7616,0.00043211,2]
[340840826,1729913438800,-154.219995,0.00043211,14]
[340840828,1729913438810,-155.495415,0.00043211,14]
[340840830,1729913438819,-151.0,0.00043211,14]
[340840832,1729913438828,-161.838733,0.00043211,14]
[340840834,1729913438838,-151.0,0.00043211,14]
[340840836,1729913438847,-151.0,0.00043211,7]